[Event "EYCC 2017"]
[Site "Mamaia"]
[Date "2017.09.05"]
[Round "1"]
[White "Pipia, Ekaterine"]
[Black "Hercog, Nusa"]
[Result "0-1"]
[ECO "D46"]
[WhiteElo "1716"]
[BlackElo "2052"]
[Annotator "NA RC"]
[PlyCount "134"]
[EventDate "2017.??.??"]
[EventType "swiss"]
[EventCountry "ROU"]
[SourceTitle "playchess.com"]
[Source "ChessBase"]
[SourceQuality "1"]
[TimeControl "40/5400+30:1800+30"]

1. d4 {[%emt 0:00:00]} d5 {[%emt 0:00:06]} 2. c4 {[%emt 0:00:00]} e6 {[%emt 0:00:12]} 3. Nf3 {[%emt 0:00:00]} Nf6 {[%emt 0:00:22]} 4. Nc3 {[%emt 0:00:10]} c6 {[%emt 0:00:19]} 5. e3 {[%emt 0:01:25]} Nbd7 {[%emt 0:00:33]} 6. Bd3 {[%emt 0:01:57]} Bd6 {[%emt 0:02:02]} 7. e4 {[%emt 0:07:19]} dxe4 {[%emt 0:02:51]} 8. Nxe4 {[%emt 0:01:22]} Nxe4 {[%emt 0:01:23]} 9. Bxe4 {[%emt 0:00:12]} Nf6 {[%emt 0:01:32]} 10. Bd3 {[%emt 0:03:24]} h6 {[%emt 0:04:38]} 11. O-O {[%emt 0:04:38]} O-O {[%emt 0:01:41]} 12. Ne5 {[%emt 0:05:26]} c5 {[%emt 0:06:48]} 13. Be3 {[%emt 0:07:47]} Qc7 {[%emt 0:09:40]} 14. Re1 {[%emt 0:07:42]} Rd8 {[%emt 0:12:14]} 15. Qc2 {[%emt 0:06:55]} b6 {[%emt 0:10:06]} 16. Rad1 {[%emt 0:16:36]} Bb7 {[%emt 0:03:13]} 17. f4 {[%emt 0:04:32]} cxd4 {[%emt 0:05:45]} 18. Bxd4 {[%emt 0:00:42]} Bb4 {[%emt 0:01:15]} 19. Bc3 {[%emt 0:01:14]} Qc5+ {[%emt 0:06:45]} 20. Kh1 {[%emt 0:02:55]} Bxc3 {[%emt 0:00:36]} 21. Qxc3 {[%emt 0:01:25]} Qf2 {[%emt 0:01:30]} 22. Bf1 {[%emt 0:07:50]} Qxf4 {[%emt 0:02:23]} 23. Rxd8+ {[%emt 0:07:42]} Rxd8 {[%emt 0:00:14]} 24. Qe3 {[%emt 0:02:22]} Qh4 {[%emt 0:06:46]} 25. Kg1 {[%emt 0:06:35]} Ng4 {[%emt 0:03:50]} 26. Nxg4 {[%emt 0:00:56]} Qxg4 {[%emt 0:00:07]} 27. Qe5 {[%emt 0:01:26]} Qd4+ {[%emt 0:02:19]} 28. Qxd4 {[%emt 0:00:05]} Rxd4 {[%emt 0:00:02]} 29. Re3 {[%emt 0:01:10]} Rd2 {[%emt 0:00:49]} 30. Ra3 {[%emt 0:00:17]} Be4 {[%emt 0:01:40]} 31. b4 {[%emt 0:00:48]} Rd7 {[%emt 0:01:07]} 32. Kf2 {[%emt 0:00:28]} Kf8 {[%emt 0:01:11]} 33. Ke3 {[%emt 0:00:18]} f5 {[%emt 0:01:29]} 34. c5 {[%emt 0:00:47]} bxc5 {[%emt 0:01:13]} 35. bxc5 {[%emt 0:00:01]} Ke7 {[%emt 0:02:29]} 36. Ra6 {[%emt 0:00:47]} Rc7 {[%emt 0:01:30]} 37. Kd4 {[%emt 0:00:26]} Bd5 {[%emt 0:03:39]} 38. Bc4 {[%emt 0:00:43]} Bxc4 {[%emt 0:01:21]} 39. Kxc4 {[%emt 0:00:01]} g5 {[%emt 0:01:19]} 40. Rd6 {[%emt 0:00:00]} h5 {[%emt 0:02:42]} 41. Kb5 {[%emt 0:05:29]} f4 {[%emt 0:02:26]} 42. Rc6 {[%emt 0:03:08]} Rxc6 {[%emt 0:14:24]} 43. Kxc6 {[%emt 0:00:02]} g4 {[%emt 0:00:05]} 44. Kb7 {[%emt 0:00:27]} f3 {[%emt 0:00:04]} 45. gxf3 {[%emt 0:00:08]} gxf3 {[%emt 0:00:05]} 46. c6 {[%emt 0:00:07]} f2 {[%emt 0:00:08]} 47. c7 {[%emt 0:00:07]} f1=Q {[%emt 0:00:08]} 48. c8=Q {[%emt 0:00:21]} Qg2+ {[%emt 0:06:21]} 49. Kxa7 {[%emt 0:04:52]} Qxa2+ {[%emt 0:00:23]} 50. Kb6 {[%emt 0:00:29]} Qb3+ {[%emt 0:00:52]} 51. Ka5 {[%emt 0:01:01]} Qd5+ {[%emt 0:01:07]} 52. Kb4 {[%emt 0:01:14]} Qd6+ {[%emt 0:00:51]} 53. Kc4 {[%emt 0:01:21]} e5 {[%emt 0:00:32]} 54. Qb7+ {[%emt 0:02:28]} Ke6 {[%emt 0:00:58]} 55. Qe4 {[%emt 0:05:17]} Qc7+ {[%emt 0:01:49]} 56. Kd3 {[%emt 0:01:21]} Qd8+ {[%emt 0:01:25]} 57. Ke3 {[%emt 0:02:29]} Qg5+ {[%emt 0:00:28]} 58. Kd3 {[%emt 0:01:45]} Qf5 {[%emt 0:00:12]} 59. Qxf5+ {[%emt 0:00:56]} Kxf5 {[%emt 0:00:06]} 60. Ke3 {[%emt 0:00:05]} e4 {[%emt 0:00:55]} 61. Ke2 {[%emt 0:00:17]} h4 {[%emt 0:01:14]} 62. Ke3 {[%emt 0:01:02]} Ke5 {[%emt 0:02:41]} 63. Ke2 {[%emt 0:00:15]} Kf4 {[%emt 0:00:27]} 64. Kf2 {[%emt 0:00:05]} e3+ {[%emt 0:02:18]} 65. Ke2 {[%emt 0:00:09]} Ke4 {[%emt 0:00:52]} 66. Ke1 {[%emt 0:07:32]} Kf3 {[%emt 0:00:22]} 67. h3 {[%emt 0:00:48]} e2 {[%emt 0:00:09]} 0-1

[Event "EYCC 2017"]
[Site "Mamaia"]
[Date "2017.09.05"]
[Round "1"]
[White "Mocanu, Paula"]
[Black "Garifullina, Leya"]
[Result "0-1"]
[ECO "C17"]
[WhiteElo "1687"]
[BlackElo "1970"]
[Annotator "NA RC"]
[PlyCount "84"]
[EventDate "2017.??.??"]
[EventType "swiss"]
[EventCountry "ROU"]
[SourceTitle "playchess.com"]
[Source "ChessBase"]
[SourceQuality "1"]
[TimeControl "40/5400+30:1800+30"]

1. e4 {[%emt 0:00:00]} e6 {[%emt 0:00:32]} 2. d4 {[%emt 0:00:00]} d5 {[%emt 0:00:44]} 3. Nc3 {[%emt 0:00:00]} Bb4 {[%emt 0:00:25]} 4. e5 {[%emt 0:01:39]} c5 {[%emt 0:01:10]} 5. Nf3 {[%emt 0:01:50]} cxd4 {[%emt 0:07:09]} 6. Nxd4 {[%emt 0:00:11]} Qc7 {[%emt 0:02:36]} 7. Ndb5 {[%emt 0:15:35]} Qxe5+ {[%emt 0:04:36]} 8. Qe2 {[%emt 0:00:52]} Qxe2+ {[%emt 0:00:34]} 9. Kxe2 {[%emt 0:00:21]} Na6 {[%emt 0:05:08]} 10. Be3 {[%emt 0:03:09]} Nf6 {[%emt 0:01:41]} 11. a3 {[%emt 0:02:19]} Be7 {[%emt 0:01:28]} 12. Bd4 {[%emt 0:07:30]} O-O {[%emt 0:01:34]} 13. Nxa7 {[%emt 0:03:04]} Bd7 {[%emt 0:02:58]} 14. Nab5 {[%emt 0:00:49]} Ne4 {[%emt 0:01:31]} 15. f3 {[%emt 0:06:09]} Nxc3+ {[%emt 0:01:11]} 16. Nxc3 {[%emt 0:00:18]} Bd6 {[%emt 0:01:30]} 17. Kd2 {[%emt 0:09:39]} Rfc8 {[%emt 0:04:12]} 18. Re1 {[%emt 0:07:29]} Nc5 {[%emt 0:02:01]} 19. g3 {[%emt 0:06:33]} Na4 {[%emt 0:04:20]} 20. Nxa4 {[%emt 0:02:21]} Rxa4 {[%emt 0:01:52]} 21. Be5 {[%emt 0:02:22]} Bf8 {[%emt 0:00:59]} 22. g4 {[%emt 0:03:34]} f6 {[%emt 0:02:26]} 23. Bg3 {[%emt 0:00:15]} e5 {[%emt 0:00:52]} 24. Bd3 {[%emt 0:01:27]} Bc6 {[%emt 0:04:23]} 25. Bf5 {[%emt 0:09:48]} Re8 {[%emt 0:02:26]} 26. g5 {[%emt 0:00:28]} g6 {[%emt 0:03:54]} 27. Bh3 {[%emt 0:01:01]} Bg7 {[%emt 0:01:56]} 28. gxf6 {[%emt 0:03:14]} Bxf6 {[%emt 0:00:10]} 29. Rhf1 {[%emt 0:00:09]} Kg7 {[%emt 0:06:44]} 30. Bg2 {[%emt 0:04:52]} e4 {[%emt 0:02:57]} 31. c3 {[%emt 0:00:42]} Bg5+ {[%emt 0:05:37]} 32. f4 {[%emt 0:01:18]} Bf6 {[%emt 0:01:10]} 33. Bf2 {[%emt 0:02:18]} d4 {[%emt 0:06:14]} 34. Kc2 {[%emt 0:03:37]} dxc3 {[%emt 0:00:23]} 35. Bc5 {[%emt 0:02:05]} cxb2 {[%emt 0:00:50]} 36. Kb1 {[%emt 0:00:08]} Rc4 {[%emt 0:01:48]} 37. Bb4 {[%emt 0:00:20]} Ba4 {[%emt 0:03:24]} 38. Re2 {[%emt 0:00:58]} Rec8 {[%emt 0:01:13]} 39. Bd2 {[%emt 0:00:29]} Bc2+ {[%emt 0:00:35]} 40. Ka2 {[%emt 0:00:00]} Bd3 {[%emt 0:00:39]} 41. Ree1 {[%emt 0:00:21]} Rc2 {[%emt 0:01:03]} 42. Rf2 {[%emt 0:01:18]} b1=Q+ {[%emt 0:00:28]} 0-1

[Event "EYCC 2017"]
[Site "Mamaia"]
[Date "2017.09.05"]
[Round "1"]
[White "Cwiek, Ryszard"]
[Black "Popov, Konstantin"]
[Result "0-1"]
[ECO "B22"]
[WhiteElo "1682"]
[BlackElo "2089"]
[Annotator "NA RC"]
[PlyCount "154"]
[EventDate "2017.??.??"]
[EventType "swiss"]
[EventCountry "ROU"]
[SourceTitle "playchess.com"]
[Source "ChessBase"]
[SourceQuality "1"]
[TimeControl "40/5400+30:1800+30"]

1. e4 {[%emt 0:00:00]} c5 {[%emt 0:00:52]} 2. c3 {[%emt 0:00:47]} d5 {[%emt 0:00:58]} 3. exd5 {[%emt 0:01:20]} Qxd5 {[%emt 0:00:27]} 4. d4 {[%emt 0:01:37]} e6 {[%emt 0:01:46]} 5. Be3 {[%emt 0:02:44]} cxd4 {[%emt 0:05:38]} 6. cxd4 {[%emt 0:08:47]} Bb4+ {[%emt 0:06:47]} 7. Nc3 {[%emt 0:01:53]} Bd7 {[%emt 0:00:46]} 8. a3 {[%emt 0:03:09]} Bxc3+ {[%emt 0:02:55]} 9. bxc3 {[%emt 0:00:34]} Bb5 {[%emt 0:14:02]} 10. Bxb5+ {[%emt 0:17:49]} Qxb5 {[%emt 0:00:07]} 11. Ne2 {[%emt 0:02:57]} Nd7 {[%emt 0:00:45]} 12. a4 {[%emt 0:02:44]} Qc6 {[%emt 0:00:20]} 13. O-O {[%emt 0:01:40]} Ngf6 {[%emt 0:00:08]} 14. Qb3 {[%emt 0:02:55]} Rc8 {[%emt 0:01:23]} 15. Rfb1 {[%emt 0:03:31]} b6 {[%emt 0:06:17]} 16. a5 {[%emt 0:04:24]} O-O {[%emt 0:00:20]} 17. axb6 {[%emt 0:04:32]} axb6 {[%emt 0:00:54]} 18. Ra7 {[%emt 0:02:25]} h6 {[%emt 0:11:24]} 19. Ra4 {[%emt 0:06:07]} Ra8 {[%emt 0:17:42]} 20. Rba1 {[%emt 0:02:32]} Rxa4 {[%emt 0:00:15]} 21. Qxa4 {[%emt 0:00:52]} b5 {[%emt 0:00:48]} 22. Qb3 {[%emt 0:02:16]} Nd5 {[%emt 0:03:55]} 23. Rb1 {[%emt 0:02:36]} Rb8 {[%emt 0:04:23]} 24. Kf1 {[%emt 0:05:04]} Rb6 {[%emt 0:07:34]} 25. Bd2 {[%emt 0:01:51]} N7f6 {[%emt 0:01:53]} 26. f3 {[%emt 0:01:18]} Qc7 {[%emt 0:01:17]} 27. Kg1 {[%emt 0:02:46]} Ne8 {[%emt 0:01:12]} 28. Ra1 {[%emt 0:01:59]} Rb8 {[%emt 0:06:15]} 29. Rb1 {[%emt 0:01:14]} Nd6 {[%emt 0:00:44]} 30. Bf4 {[%emt 0:02:01]} Nxf4 {[%emt 0:00:14]} 31. Nxf4 {[%emt 0:00:06]} Nc4 {[%emt 0:00:05]} 32. Ne2 {[%emt 0:01:59]} Nd2 {[%emt 0:00:05]} 33. Qc2 {[%emt 0:00:19]} Nxb1 {[%emt 0:00:03]} 34. Qxb1 {[%emt 0:00:06]} Qc4 {[%emt 0:00:04]} 35. Kf2 {[%emt 0:00:28]} b4 {[%emt 0:00:31]} 36. Ke3 {[%emt 0:00:35]} b3 {[%emt 0:00:16]} 37. Qb2 {[%emt 0:00:20]} Qa4 {[%emt 0:01:12]} 38. Nc1 {[%emt 0:01:03]} Qa5 {[%emt 0:00:35]} 39. f4 {[%emt 0:00:51]} Qh5 {[%emt 0:00:09]} 40. g3 {[%emt 0:00:00]} Qd1 {[%emt 0:00:13]} 41. Ke4 {[%emt 0:01:44]} Qe1+ {[%emt 0:07:58]} 42. Kd3 {[%emt 0:00:40]} Qf1+ {[%emt 0:00:37]} 43. Ke3 {[%emt 0:00:35]} Rb5 {[%emt 0:03:54]} 44. Nd3 {[%emt 0:01:20]} Qg1+ {[%emt 0:05:12]} 45. Kf3 {[%emt 0:00:56]} Qd1+ {[%emt 0:00:50]} 46. Ke3 {[%emt 0:00:14]} Ra5 {[%emt 0:00:25]} 47. Nc1 {[%emt 0:00:42]} g6 {[%emt 0:02:13]} 48. Kf2 {[%emt 0:01:09]} Ra1 {[%emt 0:13:59]} 49. Qxa1 {[%emt 0:04:45]} Qc2+ {[%emt 0:00:09]} 50. Ne2 {[%emt 0:01:30]} b2 {[%emt 0:00:05]} 51. Qa8+ {[%emt 0:00:09]} Kg7 {[%emt 0:00:11]} 52. Qb8 {[%emt 0:00:19]} b1=Q {[%emt 0:00:09]} 53. Qe5+ {[%emt 0:00:19]} Kg8 {[%emt 0:00:54]} 54. d5 {[%emt 0:00:56]} Qb6+ {[%emt 0:00:12]} 55. Ke1 {[%emt 0:00:44]} Qf5 {[%emt 0:00:36]} 56. dxe6 {[%emt 0:02:49]} Qxe5 {[%emt 0:00:10]} 57. exf7+ {[%emt 0:02:43]} Kxf7 {[%emt 0:00:03]} 58. fxe5 {[%emt 0:00:38]} Qe3 {[%emt 0:00:04]} 59. Kd1 {[%emt 0:03:14]} Qxe5 {[%emt 0:00:05]} 60. Kd2 {[%emt 0:03:13]} g5 {[%emt 0:00:14]} 61. Nd4 {[%emt 0:01:47]} Qe4 {[%emt 0:00:08]} 62. Ne2 {[%emt 0:01:33]} Qg2 {[%emt 0:00:11]} 63. h4 {[%emt 0:00:48]} gxh4 {[%emt 0:00:04]} 64. gxh4 {[%emt 0:00:29]} Qg4 {[%emt 0:00:02]} 65. h5 {[%emt 0:00:36]} Qxh5 {[%emt 0:00:02]} 66. Kd3 {[%emt 0:00:22]} Qf3+ {[%emt 0:00:04]} 67. Kd2 {[%emt 0:00:29]} h5 {[%emt 0:00:02]} 68. c4 {[%emt 0:00:48]} h4 {[%emt 0:00:03]} 69. c5 {[%emt 0:00:04]} h3 {[%emt 0:00:03]} 70. c6 {[%emt 0:00:13]} Qxc6 {[%emt 0:00:04]} 71. Ng3 {[%emt 0:00:08]} Qf3 {[%emt 0:00:02]} 72. Ne2 {[%emt 0:00:25]} h2 {[%emt 0:00:04]} 73. Nd4 {[%emt 0:00:10]} Qd5 {[%emt 0:00:05]} 74. Kc3 {[%emt 0:00:06]} h1=Q {[%emt 0:00:06]} 75. Kc2 {[%emt 0:00:15]} Qxd4 {[%emt 0:00:09]} 76. Kb3 {[%emt 0:00:08]} Qb1+ {[%emt 0:00:02]} 77. Ka3 {[%emt 0:00:07]} Qdb4# {[%emt 0:00:08]} 0-1

[Event "EYCC 2017"]
[Site "Mamaia"]
[Date "2017.09.05"]
[Round "1"]
[White "Mikic, Ivana"]
[Black "Miroshnik, Ekaterina"]
[Result "0-1"]
[ECO "C11"]
[WhiteElo "1636"]
[BlackElo "2006"]
[Annotator "NA RC"]
[PlyCount "54"]
[EventDate "2017.??.??"]
[EventType "swiss"]
[EventCountry "ROU"]
[SourceTitle "playchess.com"]
[Source "ChessBase"]
[SourceQuality "1"]
[TimeControl "40/5400+30:1800+30"]

1. e4 {[%emt 0:00:00]} e6 {[%emt 0:00:03]} 2. d4 {[%emt 0:00:00]} d5 {[%emt 0:00:04]} 3. Nc3 {[%emt 0:00:00]} Nf6 {[%emt 0:00:04]} 4. e5 {[%emt 0:00:00]} Nfd7 {[%emt 0:00:09]} 5. f4 {[%emt 0:00:10]} c5 {[%emt 0:00:10]} 6. Nf3 {[%emt 0:00:07]} Nc6 {[%emt 0:00:04]} 7. Be3 {[%emt 0:00:08]} Be7 {[%emt 0:01:45]} 8. Qd2 {[%emt 0:00:41]} a6 {[%emt 0:00:32]} 9. h4 {[%emt 0:04:09]} cxd4 {[%emt 0:06:12]} 10. Bxd4 {[%emt 0:01:17]} Nxd4 {[%emt 0:03:26]} 11. Qxd4 {[%emt 0:02:06]} Bc5 {[%emt 0:03:25]} 12. Qd2 {[%emt 0:07:35]} Qc7 {[%emt 0:12:01]} 13. Ne2 {[%emt 0:13:38]} Qb6 {[%emt 0:06:20]} 14. c3 {[%emt 0:05:42]} Be3 {[%emt 0:02:42]} 15. Qc2 {[%emt 0:01:39]} Nc5 {[%emt 0:06:17]} 16. Nfd4 {[%emt 0:09:55]} Qxb2 {[%emt 0:10:19]} 17. Qxb2 {[%emt 0:06:28]} Nd3+ {[%emt 0:00:04]} 18. Kd1 {[%emt 0:00:11]} Nxb2+ {[%emt 0:00:03]} 19. Kc2 {[%emt 0:00:19]} Nc4 {[%emt 0:00:22]} 20. Rh3 {[%emt 0:02:29]} f6 {[%emt 0:05:28]} 21. Kd3 {[%emt 0:06:38]} fxe5 {[%emt 0:04:18]} 22. fxe5 {[%emt 0:00:55]} Bh6 {[%emt 0:01:36]} 23. Nf3 {[%emt 0:01:07]} O-O {[%emt 0:04:03]} 24. g4 {[%emt 0:04:08]} Rxf3+ {[%emt 0:01:09]} 25. Rxf3 {[%emt 0:00:09]} Nxe5+ {[%emt 0:00:04]} 26. Kc2 {[%emt 0:00:23]} Nxf3 {[%emt 0:00:07]} 27. g5 {[%emt 0:00:11]} Nxg5 {[%emt 0:00:31]} 0-1

[Event "EYCC 2017"]
[Site "Mamaia"]
[Date "2017.09.05"]
[Round "1"]
[White "Mikheeva, Galina"]
[Black "Haile, Batel Goitom"]
[Result "0-1"]
[ECO "B90"]
[WhiteElo "1596"]
[BlackElo "1270"]
[Annotator "NA RC"]
[PlyCount "100"]
[EventDate "2017.??.??"]
[EventType "swiss"]
[EventCountry "ROU"]
[SourceTitle "playchess.com"]
[Source "ChessBase"]
[SourceQuality "1"]
[TimeControl "40/5400+30:1800+30"]

1. e4 {[%emt 0:00:00]} c5 {[%emt 0:00:06]} 2. Nf3 {[%emt 0:00:00]} d6 {[%emt 0:00:06]} 3. d4 {[%emt 0:00:00]} cxd4 {[%emt 0:00:09]} 4. Nxd4 {[%emt 0:00:00]} Nf6 {[%emt 0:00:18]} 5. Nc3 {[%emt 0:00:01]} a6 {[%emt 0:00:07]} 6. Nb3 {[%emt 0:00:26]} e5 {[%emt 0:01:02]} 7. Bg5 {[%emt 0:00:25]} Nbd7 {[%emt 0:00:20]} 8. Nd5 {[%emt 0:05:14]} Rb8 {[%emt 0:03:07]} 9. Qd3 {[%emt 0:05:04]} h6 {[%emt 0:01:39]} 10. Bxf6 {[%emt 0:00:16]} Nxf6 {[%emt 0:00:35]} 11. Nxf6+ {[%emt 0:00:42]} Qxf6 {[%emt 0:00:39]} 12. O-O-O {[%emt 0:01:51]} Qxf2 {[%emt 0:01:20]} 13. Rd2 {[%emt 0:02:06]} Qb6 {[%emt 0:01:15]} 14. g3 {[%emt 0:03:56]} Be7 {[%emt 0:00:59]} 15. Kb1 {[%emt 0:02:21]} Be6 {[%emt 0:02:27]} 16. h4 {[%emt 0:03:39]} Rc8 {[%emt 0:01:29]} 17. Bh3 {[%emt 0:03:48]} O-O {[%emt 0:03:43]} 18. Qf3 {[%emt 0:08:08]} a5 {[%emt 0:01:56]} 19. Rdd1 {[%emt 0:07:04]} a4 {[%emt 0:00:37]} 20. Nd2 {[%emt 0:00:48]} Bxa2+ {[%emt 0:08:59]} 21. Kc1 {[%emt 0:07:15]} Be6 {[%emt 0:04:55]} 22. Bxe6 {[%emt 0:02:24]} fxe6 {[%emt 0:00:13]} 23. Qa3 {[%emt 0:00:25]} Qc6 {[%emt 0:11:27]} 24. Qd3 {[%emt 0:02:08]} d5 {[%emt 0:02:11]} 25. exd5 {[%emt 0:02:35]} exd5 {[%emt 0:00:15]} 26. Nb1 {[%emt 0:02:00]} Rf2 {[%emt 0:03:59]} 27. c3 {[%emt 0:02:20]} a3 {[%emt 0:04:12]} 28. bxa3 {[%emt 0:03:41]} Bxa3+ {[%emt 0:00:21]} 29. Nxa3 {[%emt 0:00:06]} Qxc3+ {[%emt 0:00:06]} 30. Qxc3 {[%emt 0:00:08]} Rxc3+ {[%emt 0:00:06]} 31. Kb1 {[%emt 0:00:05]} Rb3+ {[%emt 0:00:20]} 32. Ka1 {[%emt 0:01:13]} Rxa3+ {[%emt 0:00:10]} 33. Kb1 {[%emt 0:00:02]} d4 {[%emt 0:00:51]} 34. Rhe1 {[%emt 0:00:19]} Ra5 {[%emt 0:02:23]} 35. Rd3 {[%emt 0:01:40]} Rc5 {[%emt 0:00:55]} 36. Rb3 {[%emt 0:01:47]} b5 {[%emt 0:00:32]} 37. Rc1 {[%emt 0:00:29]} Rd5 {[%emt 0:01:03]} 38. Ra3 {[%emt 0:01:22]} d3 {[%emt 0:00:36]} 39. Rd1 {[%emt 0:01:02]} d2 {[%emt 0:00:12]} 40. Kc2 {[%emt 0:00:00]} e4 {[%emt 0:00:30]} 41. Re3 {[%emt 0:01:00]} Rc5+ {[%emt 0:00:35]} 42. Kb2 {[%emt 0:00:32]} Rc4 {[%emt 0:00:34]} 43. Rb3 {[%emt 0:00:53]} b4 {[%emt 0:00:19]} 44. Re3 {[%emt 0:00:07]} h5 {[%emt 0:01:03]} 45. Rb3 {[%emt 0:01:24]} Re2 {[%emt 0:00:26]} 46. Ka2 {[%emt 0:01:30]} Rc1 {[%emt 0:00:21]} 47. Rb1 {[%emt 0:00:12]} Rxd1 {[%emt 0:00:33]} 48. Rxd1 {[%emt 0:00:11]} e3 {[%emt 0:00:05]} 49. Kb2 {[%emt 0:00:06]} Re1 {[%emt 0:00:12]} 50. Kc2 {[%emt 0:00:42]} b3+ 0-1

[Event "EYCC 2017"]
[Site "Mamaia"]
[Date "2017.09.05"]
[Round "1"]
[White "Verma, Shlok"]
[Black "Santimbrean, Mihnea-Nicolae"]
[Result "0-1"]
[ECO "C10"]
[WhiteElo "1596"]
[BlackElo "1110"]
[Annotator "NA RC"]
[PlyCount "46"]
[EventDate "2017.??.??"]
[EventType "swiss"]
[EventCountry "ROU"]
[SourceTitle "playchess.com"]
[Source "ChessBase"]
[SourceQuality "1"]
[TimeControl "40/5400+30:1800+30"]

1. e4 {[%emt 0:00:00]} e6 {[%emt 0:00:19]} 2. d4 {[%emt 0:00:00]} d5 {[%emt 0:00:21]} 3. Nc3 {[%emt 0:01:10]} dxe4 {[%emt 0:00:34]} 4. Nxe4 {[%emt 0:00:17]} Bd7 {[%emt 0:00:06]} 5. Nf3 {[%emt 0:00:24]} Bc6 {[%emt 0:01:30]} 6. Bd3 {[%emt 0:00:19]} Nd7 {[%emt 0:00:45]} 7. c3 {[%emt 0:02:05]} Ngf6 {[%emt 0:00:45]} 8. Bg5 {[%emt 0:00:35]} Be7 {[%emt 0:00:28]} 9. Nxf6+ {[%emt 0:00:50]} Bxf6 {[%emt 0:00:25]} 10. Bxf6 {[%emt 0:00:37]} Qxf6 {[%emt 0:00:26]} 11. Be2 {[%emt 0:00:13]} O-O {[%emt 0:02:21]} 12. O-O {[%emt 0:00:12]} Rfe8 {[%emt 0:01:51]} 13. Qd3 {[%emt 0:01:03]} e5 {[%emt 0:14:31]} 14. dxe5 {[%emt 0:02:34]} Nxe5 {[%emt 0:00:32]} 15. Nxe5 {[%emt 0:00:47]} Qxe5 {[%emt 0:00:36]} 16. Rfe1 {[%emt 0:01:33]} Rad8 {[%emt 0:01:13]} 17. Qc4 {[%emt 0:00:50]} Qg5 {[%emt 0:03:33]} 18. Bf1 {[%emt 0:00:48]} h6 {[%emt 0:02:55]} 19. h3 {[%emt 0:00:37]} Qd2 {[%emt 0:03:48]} 20. Rad1 {[%emt 0:00:58]} Rxe1 {[%emt 0:20:01]} 21. Rxd2 {[%emt 0:00:17]} Rxd2 {[%emt 0:00:25]} 22. Kh2 {[%emt 0:01:05]} Rxf2 {[%emt 0:00:24]} 23. Bd3 {[%emt 0:00:22]} Rxg2# {[%emt 0:00:19]} 0-1

[Event "EYCC 2017"]
[Site "Mamaia"]
[Date "2017.09.05"]
[Round "1"]
[White "Shvedova, Alexandra"]
[Black "Tqeshelashvili, Veronika"]
[Result "1/2-1/2"]
[ECO "B54"]
[WhiteElo "1578"]
[BlackElo "1234"]
[Annotator "NA RC"]
[PlyCount "95"]
[EventDate "2017.??.??"]
[EventType "swiss"]
[EventCountry "ROU"]
[SourceTitle "playchess.com"]
[Source "ChessBase"]
[SourceQuality "1"]
[TimeControl "40/5400+30:1800+30"]

1. e4 c5 2. Nf3 d6 3. d4 cxd4 4. Nxd4 g6 5. c4 Bg7 6. Nc3 Nc6 7. Be3 Nf6 8. Be2 Bd7 9. O-O O-O 10. Rc1 Ng4 11. Bxg4 Bxg4 12. f3 {[%emt 0:05:34]} Bd7 {[%emt 0:02:37]} 13. Nxc6 {[%emt 0:00:15]} Bxc6 {[%emt 0:05:28]} 14. b4 {[%emt 0:00:12]} b6 {[%emt 0:00:37]} 15. Qb3 {[%emt 0:00:05]} Rc8 {[%emt 0:00:50]} 16. Rfd1 {[%emt 0:00:39]} Qc7 {[%emt 0:02:37]} 17. Qa3 {[%emt 0:03:46]} Be5 {[%emt 0:03:22]} 18. Ne2 {[%emt 0:07:46]} Bg7 {[%emt 0:02:32]} 19. c5 {[%emt 0:07:30]} Qb8 {[%emt 0:03:57]} 20. cxb6 {[%emt 0:02:08]} axb6 {[%emt 0:00:20]} 21. Qa6 {[%emt 0:01:03]} Bb2 {[%emt 0:01:58]} 22. Rb1 {[%emt 0:02:40]} Bb7 {[%emt 0:01:07]} 23. Qxb6 {[%emt 0:02:00]} Rc2 {[%emt 0:00:14]} 24. Nd4 {[%emt 0:02:09]} Bxd4 {[%emt 0:00:22]} 25. Qxd4 {[%emt 0:00:12]} Rxa2 {[%emt 0:02:01]} 26. Bh6 {[%emt 0:00:14]} e5 {[%emt 0:00:05]} 27. Qc4 {[%emt 0:00:21]} Qa7+ {[%emt 0:00:30]} 28. Kh1 {[%emt 0:00:16]} Qf2 {[%emt 0:00:45]} 29. Qf1 {[%emt 0:00:24]} Rc8 {[%emt 0:01:47]} 30. Qxf2 {[%emt 0:00:22]} Rxf2 {[%emt 0:00:07]} 31. Rxd6 {[%emt 0:00:17]} Rb2 {[%emt 0:02:10]} 32. Rbd1 {[%emt 0:01:15]} Re8 {[%emt 0:01:30]} 33. Rd8 {[%emt 0:01:14]} Bc6 {[%emt 0:00:54]} 34. h3 {[%emt 0:00:09]} f6 {[%emt 0:00:40]} 35. R8d6 {[%emt 0:01:57]} Ba4 {[%emt 0:05:08]} 36. R1d5 {[%emt 0:06:56]} Bb3 {[%emt 0:02:03]} 37. Rb5 {[%emt 0:00:50]} Kf7 {[%emt 0:02:05]} 38. Rb7+ {[%emt 0:05:27]} Re7 {[%emt 0:03:41]} 39. Rdd7 {[%emt 0:04:56]} Rxd7 {[%emt 0:00:25]} 40. Rxd7+ {[%emt 0:00:00]} Ke6 {[%emt 0:00:42]} 41. Rd2 {[%emt 0:09:37]} Rxd2 {[%emt 0:02:37]} 42. Bxd2 {[%emt 0:00:06]} Bc4 {[%emt 0:00:08]} 43. Kg1 {[%emt 0:00:09]} f5 {[%emt 0:00:43]} 44. Kf2 {[%emt 0:00:13]} f4 {[%emt 0:00:16]} 45. g3 {[%emt 0:02:30]} g5 {[%emt 0:00:10]} 46. gxf4 {[%emt 0:01:16]} gxf4 {[%emt 0:00:06]} 47. Bc3 {[%emt 0:00:26]} Bb5 {[%emt 0:00:25]} 48. h4 {[%emt 0:01:14]} 1/2-1/2